bitfinex/quotes_BTCUSD_20240617
["timestamp","ask_amount","ask_price","bid_price","bid_amount"]
[1718640094325,0.1425,65388.0,65374.0,0.05174406]
[1718640094326,0.02,65381.0,65374.0,0.05174406]
[1718640094531,0.02,65378.0,65375.0,0.152962]
[1718640094740,0.02,65375.0,65374.0,0.0456261]
[1718640094958,0.1525,65388.0,65374.0,0.175965]
[1718640094959,0.02,65377.0,65374.0,0.175965]
[1718640095171,0.02,65376.0,65375.0,0.157963]
[1718640095490,0.02,65376.0,65375.0,0.45889]
[1718640095660,0.02,65376.0,65375.0,0.152963]
[1718640095879,0.02,65377.0,65375.0,0.152963]
[1718640096109,0.02,65383.0,65374.0,0.023]
[1718640096334,0.4736,65387.0,65374.0,0.023]
[1718640096335,0.4736,65387.0,65386.0,0.764687]
[1718640096578,0.4736,65387.0,65384.0,0.152941]
[1718640096579,0.4936,65387.0,65384.0,0.152941]
[1718640096786,0.02,65385.0,65384.0,0.458826]
[1718640096998,0.02,65385.0,65384.0,0.152941]
[1718640097223,0.4736,65387.0,65386.0,0.152937]
[1718640097482,0.4736,65387.0,65386.0,1.293562]
[1718640097703,0.1438,65400.0,65399.0,0.764537]
[1718640097928,0.02,65404.0,65399.0,0.023]
[1718640098169,0.4736,65411.0,65406.0,0.764455]
[1718640098170,0.5563,65411.0,65406.0,0.764455]
[1718640098389,0.02,65409.0,65406.0,0.152891]
[1718640098633,0.02,65410.0,65406.0,0.458673]
[1718640099072,0.02,65406.0,65402.0,0.305796]
[1718640099290,0.02,65410.0,65405.0,0.152892]
[1718640099499,0.5763,65411.0,65406.0,0.458673]
[1718640099709,0.0123017,65407.0,65406.0,0.153891]
[1718640099936,0.0323017,65407.0,65406.0,0.001]
[1718640101221,0.1704017,65407.0,65406.0,0.001]
[1718640101439,0.02,65394.0,65390.0,0.5]
[1718640101655,0.02,65394.0,65391.0,0.023]
[1718640101871,0.49396475,65406.0,65391.0,0.023]
[1718640101872,0.02,65396.0,65393.0,0.15292]
[1718640102079,0.02,65396.0,65392.0,0.152922]
[1718640102297,0.02,65395.0,65393.0,0.023]
[1718640102514,0.02,65392.0,65390.0,0.5]
[1718640102735,0.0656,65394.0,65392.0,0.305846]
[1718640102946,0.0803,65396.0,65395.0,0.764582]
[1718640103192,0.0803,65396.0,65395.0,0.152916]
[1718640103412,0.1003,65396.0,65393.0,0.152919]
[1718640103860,0.0803,65396.0,65393.0,0.152919]
[1718640104084,0.0803,65396.0,65394.0,0.152917]
[1718640104304,0.0803,65396.0,65395.0,0.764582]
[1718640104741,0.02,65398.0,65395.0,0.005]
[1718640105005,0.02,65395.0,65393.0,0.001]
[1718640105230,0.02,65394.0,65393.0,0.001]
[1718640105451,0.02,65397.0,65393.0,0.007]
[1718640105674,0.02,65398.0,65393.0,0.007]
[1718640106143,0.002,65396.0,65390.0,0.5]
[1718640106359,0.02,65395.0,65391.0,0.152926]
[1718640106574,0.02,65392.0,65390.0,0.5]
[1718640107033,0.0856,65399.0,65393.0,0.001]
[1718640107258,0.02,65397.0,65393.0,0.001]
[1718640107501,0.02,65396.0,65393.0,0.001]
[1718640107692,0.02,65395.0,65393.0,0.001]
[1718640108361,0.02,65395.0,65390.0,0.652927]
[1718640108576,0.02,65395.0,65393.0,0.007]
[1718640108795,0.02,65395.0,65390.0,0.504]
[1718640109019,0.02,65393.0,65390.0,0.504]
[1718640109456,0.02,65393.0,65390.0,0.5]
[1718640109676,0.02,65395.0,65390.0,0.5]
[1718640110170,0.02,65397.0,65390.0,0.5]
[1718640110434,0.0767,65405.0,65404.0,0.458686]
[1718640110655,0.49396475,65406.0,65405.0,0.152893]
[1718640111076,0.51396475,65406.0,65404.0,0.152895]
[1718640111300,0.51396475,65406.0,65402.0,0.305799]
[1718640111301,0.49396475,65406.0,65405.0,0.152893]
[1718640111512,0.49396475,65406.0,65405.0,0.45868]
[1718640112404,0.0093017,65407.0,65406.0,0.458673]
[1718640112640,0.0093017,65407.0,65406.0,1.41313192]
[1718640112856,0.0093017,65407.0,65406.0,1.74191392]
[1718640113139,0.0093017,65407.0,65406.0,1.81039468]
[1718640113363,0.0093017,65407.0,65406.0,1.8332216]
[1718640114028,0.0093017,65407.0,65406.0,1.9352216]
[1718640114481,0.0093017,65407.0,65406.0,1.84306167]
[1718640114946,0.0093017,65407.0,65406.0,1.95719628]
[1718640115466,0.0103017,65407.0,65406.0,2.10322949]
[1718640115924,0.0093017,65407.0,65406.0,2.10322949]
[1718640116153,0.0103017,65407.0,65406.0,2.11722949]
[1718640116599,0.0103017,65407.0,65406.0,2.13122949]
[1718640116812,0.0103017,65407.0,65406.0,2.26963313]
[1718640117026,0.0103017,65407.0,65406.0,2.43701149]
[1718640117243,0.0103017,65407.0,65406.0,2.13122949]
[1718640117717,0.0103017,65407.0,65406.0,2.43701149]
[1718640118115,0.0103017,65407.0,65406.0,2.13122949]
[1718640119251,0.009383,65417.0,65416.0,0.802]
[1718640119460,0.009383,65417.0,65416.0,2.6741105]
[1718640119682,0.009383,65417.0,65416.0,2.89081749]
[1718640121464,0.009383,65417.0,65416.0,2.78881749]
[1718640121682,0.009383,65417.0,65416.0,2.95918123]
[1718640122130,0.009383,65417.0,65416.0,2.96718123]
[1718640122364,0.009383,65417.0,65416.0,2.90081749]
[1718640122647,0.009383,65417.0,65416.0,3.25655249]
[1718640123124,0.009383,65417.0,65416.0,3.34773482]
[1718640123802,0.009383,65417.0,65416.0,3.25655249]
[1718640124042,0.009383,65417.0,65416.0,3.34773482]
[1718640124262,0.009383,65417.0,65416.0,3.30655249]
[1718640124480,0.00939401,65419.0,65418.0,1.577767]
[1718640124697,0.00939401,65419.0,65418.0,2.40550349]
[1718640124905,0.00939401,65419.0,65418.0,2.57041975]
[1718640125124,0.009372,65423.0,65418.0,2.57041975]
[1718640125125,0.00095445,65424.0,65422.0,0.1]
[1718640125365,1e-08,65427.0,65426.0,1.13785]
[1718640125564,1e-08,65427.0,65426.0,2.13313649]
[1718640125772,1e-08,65427.0,65426.0,2.43882449]
[1718640126428,1e-08,65428.0,65427.0,1.716778]
[1718640126629,1e-08,65428.0,65427.0,2.40637249]
[1718640126833,1e-08,65428.0,65427.0,2.54105795]
[1718640127045,0.0804,65448.0,65442.0,1.769649]
[1718640127256,0.0804,65448.0,65442.0,1.94537788]
[1718640127478,0.0804,65448.0,65442.0,2.04537788]
[1718640127711,0.1398,65452.0,65442.0,2.63809188]
[1718640127942,0.1398,65452.0,65442.0,2.63827579]
[1718640128155,0.1398,65452.0,65442.0,2.74027579]
[1718640128594,0.1398,65452.0,65442.0,2.64827579]
[1718640128816,0.1398,65452.0,65442.0,2.64809188]
[1718640129525,0.1398,65452.0,65442.0,2.54609188]
[1718640129736,0.1398,65452.0,65442.0,2.64809188]
[1718640129957,0.1398,65452.0,65442.0,2.64609188]
[1718640130183,0.4936,65462.0,65442.0,2.71912307]
[1718640130444,0.4936,65462.0,65442.0,3.02473707]
[1718640130445,0.0771,65457.0,65442.0,3.02473707]
[1718640130687,0.4736,65462.0,65442.0,3.12696233]
[1718640130688,0.5507,65462.0,65442.0,3.12696233]
[1718640130901,0.4736,65462.0,65461.0,1.069337]
[1718640131120,0.009372,65463.0,65462.0,0.7638]
[1718640131590,0.009372,65463.0,65462.0,0.7868]
[1718640131952,0.009372,65463.0,65462.0,1.09232]
[1718640132929,0.009372,65463.0,65462.0,1.39784]
[1718640133579,0.009372,65463.0,65462.0,1.40684]
[1718640133795,0.009372,65463.0,65462.0,1.42084]
[1718640134053,0.009372,65463.0,65462.0,1.11532]
[1718640134299,0.009372,65463.0,65462.0,0.8098]
[1718640134511,0.009372,65463.0,65462.0,1.11532]
[1718640134977,0.009372,65463.0,65462.0,0.19876]
[1718640135211,0.009372,65463.0,65462.0,0.8098]
[1718640135439,0.009372,65463.0,65462.0,1.11532]
[1718640135854,0.009372,65463.0,65462.0,0.50428]
[1718640136065,0.009372,65463.0,65462.0,0.7868]
[1718640136494,0.009372,65463.0,65462.0,0.48128]
[1718640136713,0.009372,65463.0,65462.0,0.16176]
[1718640136714,0.154172,65463.0,65462.0,0.16176]
[1718640137007,0.154172,65463.0,65462.0,0.45828]
[1718640137235,0.154172,65463.0,65462.0,0.8008]
[1718640137236,0.092672,65463.0,65462.0,0.8008]
[1718640137463,0.009372,65463.0,65462.0,1.25104888]
[1718640137696,0.009372,65463.0,65462.0,1.55656888]
[1718640138339,0.009372,65463.0,65462.0,1.70856888]
[1718640138550,0.009372,65463.0,65462.0,2.00056888]
[1718640139184,0.009372,65463.0,65462.0,1.99456888]
[1718640139826,0.010372,65463.0,65462.0,2.01756888]
[1718640140025,0.010372,65463.0,65462.0,2.00356888]
[1718640140237,0.009372,65463.0,65462.0,1.99456888]
[1718640140441,0.0131936,65481.0,65472.0,2.421333]
[1718640140653,0.0131936,65481.0,65472.0,3.18763588]
[1718640140865,0.0131936,65481.0,65472.0,2.78016188]
[1718640141065,0.0131936,65481.0,65480.0,1.46359]
[1718640141278,0.0131936,65481.0,65480.0,0.723]
[1718640141497,0.0131936,65481.0,65480.0,1.158154]
[1718640141714,0.0331936,65481.0,65480.0,0.7]
[1718640142143,0.0131936,65481.0,65480.0,0.7]
[1718640142353,0.1123936,65481.0,65480.0,0.2]
[1718640142567,0.0923936,65481.0,65474.0,0.305464]
[1718640142772,0.0923936,65481.0,65475.0,0.023]
[1718640143186,0.0923936,65481.0,65475.0,0.305458]
[1718640143394,0.0923936,65481.0,65478.0,0.15272]
[1718640143598,0.0923936,65481.0,65476.0,0.023]
[1718640143819,0.0653,65477.0,65476.0,0.152725]
[1718640144029,0.0653,65477.0,65476.0,0.45818]
[1718640144467,0.0923936,65481.0,65480.0,0.76359]
[1718640144468,0.1562936,65481.0,65480.0,0.76359]
[1718640144734,0.1562936,65481.0,65480.0,1.069026]
[1718640145171,0.0923936,65481.0,65480.0,1.769026]
[1718640145385,0.0131936,65481.0,65480.0,2.25019088]
[1718640145847,0.0131936,65481.0,65480.0,1.94475488]
[1718640146068,0.0131936,65481.0,65480.0,2.25019088]
[1718640147123,0.0131936,65481.0,65480.0,1.792026]
[1718640147343,0.0131936,65481.0,65480.0,0.875718]
[1718640147555,0.0131936,65481.0,65480.0,1.48659]
[1718640147760,0.0141936,65481.0,65480.0,0.733]
[1718640147941,0.0141936,65481.0,65480.0,0.735]
[1718640148154,0.0141936,65481.0,65480.0,0.733]
[1718640148291,0.0141936,65481.0,65480.0,1.191154]
[1718640148508,0.0141936,65481.0,65480.0,0.747]
[1718640149092,0.1749936,65481.0,65480.0,0.724]
[1718640149305,0.1549936,65481.0,65480.0,0.876718]
[1718640149544,0.1749936,65481.0,65480.0,0.724]
[1718640149759,0.1739936,65481.0,65480.0,0.714]
[1718640150183,0.1739936,65481.0,65480.0,0.01]
[1718640150611,0.1739936,65481.0,65480.0,0.02]
[1718640150868,0.1739936,65481.0,65480.0,0.01]
[1718640151091,0.1739936,65481.0,65480.0,0.012]
[1718640156151,0.45595461,65491.0,65480.0,0.012]
[1718640156385,0.15272888,65490.0,65480.0,0.012]
[1718640156810,0.02,65489.0,65480.0,0.012]
[1718640157041,0.15272888,65489.0,65480.0,0.01]
[1718640157488,0.15272888,65489.0,65480.0,0.012]
[1718640157732,0.17272888,65489.0,65480.0,0.012]
[1718640157989,0.17272888,65489.0,65473.0,0.352733]
[1718640158201,0.17272888,65489.0,65480.0,0.002]
[1718640158415,0.02,65487.0,65480.0,0.012]
[1718640158650,0.02,65484.0,65480.0,0.012]
[1718640158875,0.02,65484.0,65480.0,0.002]
[1718640159091,0.02,65484.0,65480.0,0.012]
[1718640159307,0.1418,65483.0,65480.0,0.012]
[1718640159525,0.1418,65483.0,65480.0,0.002]
[1718640160006,0.1418,65483.0,65475.0,0.305458]
[1718640160222,0.1418,65483.0,65470.0,0.58880366]
[1718640160395,0.1418,65483.0,65482.0,0.152713]
[1718640160900,0.1418,65483.0,65478.0,0.152722]
[1718640161115,0.1418,65483.0,65480.0,0.002]
[1718640161329,0.1468,65483.0,65481.0,0.305432]
[1718640161543,0.1468,65483.0,65482.0,0.152713]
[1718640161764,0.1418,65483.0,65482.0,0.45814]
[1718640162218,0.1358,65492.0,65491.0,0.152692]
[1718640162427,0.1358,65492.0,65481.0,0.214115]
[1718640162652,0.1358,65492.0,65482.0,0.023]
[1718640162885,0.31690746,65491.0,65482.0,0.023]
[1718640163099,0.1358,65492.0,65491.0,0.458077]
[1718640163321,0.1358,65492.0,65490.0,0.152695]
[1718640163562,0.006,65483.0,65482.0,0.53474]
[1718640163778,0.006,65483.0,65482.0,0.95978005]
[1718640163994,0.006,65483.0,65482.0,1.26520705]
[1718640164213,0.1358,65492.0,65489.0,0.152695]
[1718640164429,0.1358,65492.0,65482.0,0.1046]
[1718640164663,0.1418,65492.0,65491.0,0.001]
[1718640165100,0.1418,65492.0,65488.0,0.152699]
[1718640165101,0.1358,65492.0,65488.0,0.152699]
[1718640165581,0.1358,65492.0,65486.0,0.458108]
[1718640165782,0.1358,65492.0,65483.0,0.328421]
[1718640165990,0.1358,65492.0,65487.0,0.1527]
[1718640166212,0.1358,65492.0,65488.0,0.152699]
[1718640166858,0.1358,65492.0,65488.0,0.152698]
[1718640167332,0.1358,65492.0,65483.0,0.023]
[1718640167517,0.1358,65492.0,65485.0,0.30541]
[1718640167757,0.1358,65492.0,65489.0,0.152696]
[1718640167969,0.1398,65492.0,65489.0,0.152696]
[1718640168189,0.1398,65492.0,65491.0,0.152692]
[1718640168454,0.1398,65492.0,65491.0,0.458077]
[1718640168922,0.004,65492.0,65491.0,0.458077]
[1718640169146,0.004,65492.0,65491.0,0.763462]
[1718640169366,0.004,65492.0,65491.0,0.458077]
[1718640169799,0.004,65492.0,65490.0,0.152694]
[1718640170016,0.004,65492.0,65484.0,0.2]
[1718640170232,0.00851,65493.0,65485.0,0.023]
[1718640170452,0.00851,65493.0,65487.0,0.305403]
[1718640170681,0.00851,65493.0,65488.0,0.152699]
[1718640171325,0.00851,65493.0,65492.0,0.76345]
[1718640171970,0.00851,65493.0,65492.0,0.45807]
[1718640172186,0.00851,65493.0,65492.0,0.15269]
[1718640172613,0.00851,65493.0,65492.0,0.45807]
[1718640172822,0.00851,65493.0,65492.0,0.76645]
[1718640173049,0.00851,65493.0,65492.0,0.15569]
[1718640173266,0.00851,65493.0,65492.0,0.46107]
[1718640173479,0.00851,65493.0,65492.0,0.88542501]
[1718640174124,0.01451,65493.0,65492.0,0.88642501]
[1718640174542,0.00851,65493.0,65492.0,0.88542501]
[1718640175062,0.01251,65493.0,65492.0,1.19080501]
[1718640175269,0.01251,65493.0,65492.0,0.98945]
[1718640175486,0.01251,65493.0,65492.0,1.08566126]
[1718640177011,0.01251,65493.0,65492.0,1.13073685]
[1718640177228,0.01251,65493.0,65492.0,1.08566126]
[1718640178080,0.01251,65493.0,65492.0,1.43611685]
[1718640178297,0.01251,65493.0,65492.0,1.13073685]
[1718640178523,0.01251,65493.0,65492.0,1.43611685]
[1718640178976,0.01251,65493.0,65492.0,1.33990559]
[1718640179189,0.01251,65493.0,65492.0,1.08518602]
[1718640179397,0.01251,65493.0,65492.0,1.13077156]
[1718640180889,0.01251,65493.0,65492.0,1.43616194]
[1718640181117,0.01251,65493.0,65492.0,2.32224194]
[1718640181328,0.01251,65493.0,65492.0,2.36332747]
[1718640181666,0.01251,65493.0,65492.0,2.46532747]
[1718640181752,0.01251,65493.0,65492.0,2.65019851]
[1718640182001,0.01251,65493.0,65492.0,2.63019851]
[1718640182231,0.00851,65493.0,65492.0,2.66565596]
[1718640182466,0.00851,65493.0,65492.0,2.65371767]
[1718640182685,0.00851,65493.0,65492.0,2.76317111]
[1718640182915,0.00851,65493.0,65492.0,2.35579111]
[1718640183149,0.00851,65493.0,65492.0,2.78161862]
[1718640183370,0.00851,65493.0,65492.0,2.55169157]
[1718640183603,0.00851,65493.0,65492.0,2.56569157]
[1718640184101,0.00951,65493.0,65492.0,1.93493157]
[1718640184342,0.00951,65493.0,65492.0,1.17655763]
[1718640184568,0.00851,65493.0,65492.0,1.44237731]
[1718640184803,0.00851,65493.0,65492.0,2.18592444]
[1718640185033,0.00851,65493.0,65492.0,2.59330444]
[1718640185261,0.00951,65493.0,65492.0,2.76193605]
[1718640185489,0.00951,65493.0,65492.0,3.05868444]
[1718640185721,0.00851,65493.0,65492.0,2.67148996]
[1718640185948,0.00851,65493.0,65492.0,2.65748996]
[1718640186158,0.00851,65493.0,65492.0,3.06486996]
[1718640186370,0.00851,65493.0,65492.0,2.97486996]
[1718640186573,0.00851,65493.0,65492.0,2.35210996]
[1718640186803,0.00851,65493.0,65492.0,2.44319712]
[1718640187012,0.00851,65493.0,65492.0,2.43442117]
[1718640187226,0.00851,65493.0,65492.0,2.4344097]
[1718640187449,0.00851,65493.0,65492.0,2.4394097]
[1718640187680,0.00851,65493.0,65492.0,2.4194097]
[1718640187918,0.00851,65493.0,65492.0,2.34610996]
[1718640188131,0.00851,65493.0,65492.0,2.36610996]
[1718640188340,0.00951,65493.0,65492.0,2.7517897]
[1718640188552,0.00951,65493.0,65492.0,2.68348996]
[1718640188774,0.00951,65493.0,65492.0,2.77455628]
[1718640189001,0.00951,65493.0,65492.0,2.78548996]
[1718640189255,0.00951,65493.0,65492.0,3.09086996]
[1718640189478,0.00951,65493.0,65492.0,2.88532286]
[1718640189900,0.00951,65493.0,65492.0,3.19070286]
[1718640190076,0.00951,65493.0,65492.0,2.89932286]
[1718640190523,0.00951,65493.0,65492.0,2.88532286]
[1718640190704,0.00951,65493.0,65492.0,2.93532286]
[1718640190908,0.00951,65493.0,65492.0,2.89066758]
[1718640192308,0.00951,65493.0,65492.0,3.00436201]
[1718640193585,0.00951,65493.0,65492.0,2.89066758]
[1718640194853,0.00951,65493.0,65492.0,3.19604758]
[1718640195066,1e-08,65493.0,65492.0,3.42280358]
[1718640195923,1e-08,65493.0,65492.0,3.0997759]
[1718640196759,1e-08,65493.0,65492.0,3.4051559]
[1718640196980,1e-08,65493.0,65492.0,3.2915219]
[1718640197198,1e-08,65493.0,65492.0,2.9861419]
[1718640197419,1e-08,65493.0,65492.0,2.35319087]
[1718640197628,1e-08,65493.0,65492.0,2.26228758]
[1718640198065,1e-08,65493.0,65492.0,2.33046829]
[1718640198276,1e-08,65493.0,65492.0,2.26228758]
[1718640198499,1e-08,65493.0,65492.0,2.19228758]
[1718640198717,1e-08,65493.0,65492.0,1.98237039]
[1718640198937,1e-08,65493.0,65492.0,1.95990758]
[1718640199392,1e-08,65493.0,65492.0,2.31075039]
[1718640199603,1e-08,65493.0,65492.0,2.26528758]
[1718640201051,1e-08,65493.0,65492.0,1.80877109]
[1718640201246,1e-08,65493.0,65492.0,1.88568825]
[1718640201494,1e-08,65493.0,65492.0,1.02223825]
[1718640201700,0.14060001,65493.0,65492.0,0.76983438]
[1718640202103,0.14060001,65493.0,65492.0,0.74418552]
[1718640202351,0.14060001,65493.0,65492.0,0.24418552]
[1718640202555,0.07060001,65493.0,65492.0,0.24418552]
[1718640202726,0.07060001,65493.0,65492.0,0.33465459]
[1718640202940,0.07060001,65493.0,65492.0,0.13465459]
[1718640203155,0.07060001,65493.0,65492.0,0.14465459]
[1718640203340,0.07060001,65493.0,65492.0,0.12646907]
[1718640203562,0.07060001,65493.0,65492.0,0.14946907]
[1718640203780,0.07060001,65493.0,65492.0,0.13546907]
[1718640204207,0.07060001,65493.0,65492.0,0.30215907]
[1718640204444,0.07060001,65493.0,65492.0,0.13546907]
[1718640204626,0.07060001,65493.0,65492.0,0.12546907]
[1718640204828,0.07060001,65493.0,65492.0,0.13746907]
[1718640205405,0.07060001,65493.0,65492.0,0.29015907]
[1718640205614,0.07060001,65493.0,65492.0,0.59553907]
[1718640206392,0.07060001,65493.0,65492.0,0.14246907]
[1718640206608,0.07060001,65493.0,65492.0,0.11946907]
[1718640206847,0.13360001,65493.0,65492.0,0.017]
[1718640207706,0.13360001,65493.0,65492.0,0.005]
[1718640207911,0.13560001,65493.0,65492.0,0.005]
[1718640208541,0.0811,65492.0,65488.0,0.000935]
[1718640212444,0.0861,65492.0,65488.0,0.000935]
[1718640212869,0.0811,65492.0,65488.0,0.000935]
[1718640213352,0.0871,65492.0,65488.0,0.001935]
[1718640213791,0.08691622,65492.0,65488.0,0.001935]
[1718640214676,0.08691622,65492.0,65488.0,0.002935]
[1718640214909,0.08091622,65492.0,65488.0,0.000935]
[1718640215418,0.08691622,65492.0,65488.0,0.003935]
[1718640215651,0.08691622,65492.0,65488.0,0.000935]
[1718640215891,0.08091622,65492.0,65488.0,0.000935]
[1718640216119,0.08691622,65492.0,65488.0,0.001935]
[1718640218643,0.08091622,65492.0,65488.0,0.000935]
[1718640219100,0.08491622,65492.0,65488.0,0.000935]
[1718640219319,0.08491622,65492.0,65488.0,0.003935]
[1718640219320,0.02,65491.0,65488.0,0.003935]
[1718640219531,0.02,65491.0,65488.0,0.000935]
[1718640219743,0.08091622,65492.0,65488.0,0.000935]
[1718640219978,0.08691622,65492.0,65488.0,0.001935]
[1718640220187,0.10691622,65492.0,65488.0,0.001935]
[1718640220412,0.07591622,65492.0,65488.0,0.001935]
[1718640221091,0.02,65490.0,65488.0,0.001935]
[1718640221307,0.02,65491.0,65488.0,0.001935]
[1718640221520,0.07591622,65492.0,65488.0,0.001935]
[1718640221722,0.003,65491.0,65488.0,0.001935]
[1718640222155,0.003,65491.0,65488.0,0.000935]
[1718640222394,0.06991622,65492.0,65488.0,0.000935]
[1718640222613,0.006,65491.0,65488.0,0.001935]
[1718640222826,0.003,65490.0,65488.0,0.001935]
[1718640223054,0.006,65491.0,65488.0,0.001935]
[1718640223505,0.003,65491.0,65488.0,0.000935]
[1718640223927,0.003,65491.0,65488.0,0.001935]
[1718640224802,0.07591622,65492.0,65488.0,0.001935]
[1718640225196,0.003,65490.0,65488.0,0.001935]
[1718640225611,0.06991622,65492.0,65488.0,0.000935]
[1718640226050,0.009,65491.0,65488.0,0.001935]
[1718640226482,0.003,65491.0,65488.0,0.000935]
[1718640226700,0.003,65490.0,65488.0,0.001935]
[1718640226901,0.009,65490.0,65488.0,0.001935]
[1718640227332,0.003,65490.0,65488.0,0.000935]
[1718640228187,0.06991622,65492.0,65488.0,0.000935]
[1718640228404,0.07291622,65492.0,65488.0,0.000935]
[1718640228864,0.00085,65493.0,65492.0,0.15269]
[1718640229082,0.00085,65493.0,65492.0,0.56238361]
[1718640229300,0.00085,65493.0,65492.0,0.89076361]
[1718640230415,0.00085,65493.0,65492.0,1.19614361]
[1718640231043,0.00085,65493.0,65492.0,0.89076361]
[1718640231497,0.00085,65493.0,65492.0,1.34887249]
[1718640231719,0.00085,65493.0,65492.0,1.68427249]
[1718640231926,0.00085,65493.0,65492.0,1.69027249]
[1718640232348,0.00185,65493.0,65492.0,1.69027249]
[1718640233483,0.00185,65493.0,65492.0,1.38489249]
[1718640233954,0.00185,65493.0,65492.0,0.19351361]
[1718640234182,0.00185,65493.0,65492.0,0.95696361]
[1718640235038,0.00185,65493.0,65492.0,1.26234361]
[1718640237688,0.0017627,65493.0,65492.0,1.26234361]
[1718640238345,0.0017627,65493.0,65492.0,0.95696361]
[1718640238802,0.0017627,65493.0,65492.0,1.26234361]
[1718640239019,0.0017627,65493.0,65492.0,0.95696361]
[1718640239256,0.0017627,65493.0,65492.0,1.72045249]
[1718640239472,0.0017627,65493.0,65492.0,1.46050867]
[1718640239893,0.0017627,65493.0,65492.0,1.41507249]
[1718640240810,0.0017627,65493.0,65492.0,0.28600361]
[1718640241029,0.0017627,65493.0,65492.0,0.13331361]
[1718640241240,0.0017627,65493.0,65492.0,0.59138361]
[1718640241470,0.0017627,65493.0,65492.0,0.029]
[1718640241660,0.0017627,65493.0,65492.0,0.18169]
[1718640241867,0.0017627,65493.0,65492.0,0.029]
[1718640242077,0.0017627,65493.0,65492.0,0.029935]
[1718640242691,0.0017627,65493.0,65492.0,0.13325028]
[1718640243575,0.0017627,65493.0,65492.0,0.029935]
[1718640246844,0.0017627,65493.0,65492.0,0.006935]
[1718640247059,0.0768627,65493.0,65492.0,0.006935]
[1718640247455,0.0968627,65493.0,65492.0,0.006935]
[1718640247662,0.0768627,65493.0,65492.0,0.006935]
[1718640248233,0.0968627,65493.0,65492.0,0.006935]
[1718640248648,0.0968627,65493.0,65492.0,0.000935]
[1718640249112,0.0968627,65493.0,65492.0,0.006935]
[1718640249335,0.0958627,65493.0,65492.0,0.006935]
[1718640249753,0.0968627,65493.0,65492.0,0.006935]
[1718640250185,0.0958627,65493.0,65492.0,0.006935]
[1718640250634,0.1018627,65493.0,65492.0,0.001935]
[1718640251036,0.1048627,65493.0,65492.0,0.001935]
[1718640251890,0.2575507,65493.0,65492.0,0.001935]
[1718640252145,0.6276267,65493.0,65492.0,0.001935]
[1718640252524,0.3222507,65493.0,65492.0,0.001935]
[1718640252736,0.1695627,65493.0,65492.0,0.001935]
[1718640253171,0.3222507,65493.0,65492.0,0.001935]
[1718640253407,1.37053158,65493.0,65492.0,0.001935]
[1718640253841,1.70266597,65493.0,65492.0,0.001935]
[1718640254055,1.7851592,65493.0,65492.0,0.001935]
[1718640254271,2.3033952,65493.0,65492.0,0.000935]
[1718640254474,2.44911268,65493.0,65492.0,0.000935]
[1718640254819,2.37461945,65493.0,65492.0,0.002935]
[1718640255023,2.41167693,65493.0,65492.0,0.002935]
[1718640255445,2.10630093,65493.0,65492.0,0.002935]
[1718640255664,1.86244093,65493.0,65492.0,0.001935]
[1718640255874,0.91620093,65493.0,65492.0,0.002935]
[1718640256091,1.29153729,65493.0,65492.0,0.002935]
[1718640256296,1.28553729,65493.0,65492.0,0.001935]
[1718640256503,1.29953729,65493.0,65492.0,0.002935]
[1718640256925,0.98255558,65493.0,65492.0,0.002935]
[1718640257128,0.66317958,65493.0,65492.0,0.001935]
[1718640257339,0.98255558,65493.0,65492.0,0.001935]
[1718640257557,1.08255558,65493.0,65492.0,0.001935]
[1718640257735,1.06855558,65493.0,65492.0,0.001935]
[1718640257954,1.06655558,65493.0,65492.0,0.000935]
[1718640258155,1.08055558,65493.0,65492.0,0.000935]
[1718640258363,1.08855558,65493.0,65492.0,0.001935]
[1718640258814,1.08055558,65493.0,65492.0,0.000935]
[1718640259047,1.08855558,65493.0,65492.0,0.001935]
[1718640259461,0.78317958,65493.0,65492.0,0.001935]
[1718640259669,0.66917958,65493.0,65492.0,0.001935]
[1718640259888,0.53439895,65493.0,65492.0,0.001935]
[1718640260104,0.54839895,65493.0,65492.0,0.002935]
[1718640260312,0.1130627,65493.0,65492.0,0.002935]
[1718640260519,0.0227627,65493.0,65492.0,0.002935]
[1718640261764,0.0087627,65493.0,65492.0,0.001935]
[1718640262346,0.0007627,65493.0,65492.0,0.000935]
[1718640262546,0.0047627,65493.0,65492.0,0.001935]
[1718640263818,0.0177627,65493.0,65492.0,0.002935]
[1718640264239,0.0177627,65493.0,65492.0,0.461005]
[1718640264458,0.0047627,65493.0,65492.0,0.788385]
[1718640264881,0.0177627,65493.0,65492.0,1.238765]
[1718640265096,0.0177627,65493.0,65492.0,0.933385]
[1718640265311,0.0177627,65493.0,65492.0,0.169935]
[1718640265516,0.0007627,65493.0,65492.0,0.167935]
[1718640265721,0.0097627,65493.0,65492.0,0.168935]
[1718640265937,0.0127627,65493.0,65492.0,0.168935]
[1718640267200,0.0127627,65493.0,65492.0,0.321625]
[1718640267406,0.0127627,65493.0,65492.0,0.627005]
[1718640267619,0.0127627,65493.0,65492.0,0.168935]
[1718640267828,0.0127627,65493.0,65492.0,0.091535]
[1718640268918,0.0127627,65493.0,65492.0,0.244225]
[1718640269766,0.0127627,65493.0,65492.0,0.549605]
[1718640270184,0.0127627,65493.0,65492.0,1.160365]
[1718640270403,0.0127627,65493.0,65492.0,1.49956118]
[1718640270618,0.0127627,65493.0,65492.0,1.499551]
[1718640271333,0.0037627,65493.0,65492.0,1.803931]
[1718640271539,0.0037627,65493.0,65492.0,1.84935028]
[1718640271753,0.0037627,65493.0,65492.0,2.004931]
[1718640272192,0.0037627,65493.0,65492.0,2.003931]
[1718640272613,0.0047627,65493.0,65492.0,2.015931]
[1718640272829,0.0017627,65493.0,65492.0,2.015931]
[1718640273257,0.0017627,65493.0,65492.0,2.06931049]
[1718640273460,0.0017627,65493.0,65492.0,2.06131049]
[1718640273689,0.0017627,65493.0,65492.0,2.06006173]